bitfinex/quotes_BTCUSD_20240727
["timestamp","ask_amount","ask_price","bid_price","bid_amount"]
[1722088121105,0.0837,69468.0,69467.0,0.07512979]
[1722088121875,0.1479,69468.0,69466.0,0.000924]
[1722088122075,0.0015542,69467.0,69466.0,0.000924]
[1722088122275,0.1459,69468.0,69466.0,0.000924]
[1722088122474,0.1469,69468.0,69466.0,0.000924]
[1722088122950,0.0015542,69467.0,69466.0,0.000924]
[1722088123142,0.16849214,69468.0,69466.0,0.000924]
[1722088123345,0.001,69467.0,69466.0,0.000924]
[1722088123548,0.00228431,69467.0,69466.0,0.000924]
[1722088123751,0.577759,69467.0,69466.0,0.000924]
[1722088123926,0.289853,69467.0,69466.0,0.000924]
[1722088124094,0.578759,69467.0,69466.0,0.000924]
[1722088124314,0.866665,69467.0,69466.0,0.000924]
[1722088124943,0.865665,69467.0,69466.0,0.000924]
[1722088125576,1.154571,69467.0,69466.0,0.000924]
[1722088125739,1.2407526,69467.0,69466.0,0.000924]
[1722088126135,1.23977626,69467.0,69466.0,0.000924]
[1722088126339,1.24477626,69467.0,69466.0,0.000924]
[1722088126540,1.158571,69467.0,69466.0,0.000924]
[1722088126995,1.24577797,69467.0,69466.0,0.000924]
[1722088127199,1.24877797,69467.0,69466.0,0.000924]
[1722088127498,1.27932757,69467.0,69466.0,0.000924]
[1722088127713,0.1398,69453.0,69445.0,0.45077872]
[1722088128041,0.2616,69446.0,69445.0,0.45077872]
[1722088128248,0.2616,69446.0,69434.0,0.2]
[1722088128761,0.0763,69445.0,69434.0,0.2]
[1722088129210,0.2616,69437.0,69434.0,0.2]
[1722088129408,0.0635,69436.0,69434.0,0.2]
[1722088129894,0.0763,69435.0,69434.0,0.2]
[1722088131079,0.220319,69435.0,69434.0,0.2]
[1722088131277,0.508358,69435.0,69434.0,0.2]
[1722088131482,0.571858,69435.0,69434.0,0.2]
[1722088131610,1.147936,69435.0,69434.0,0.2]
[1722088131847,0.571858,69435.0,69434.0,0.2]
[1722088132040,0.572858,69435.0,69434.0,0.2]
[1722088132500,0.860897,69435.0,69434.0,0.2]
[1722088132657,0.284819,69435.0,69434.0,0.2]
[1722088132843,0.860897,69435.0,69434.0,0.2]
[1722088133043,0.572858,69435.0,69434.0,0.2]
[1722088133267,0.1408,69435.0,69434.0,0.2]
[1722088133684,0.572858,69435.0,69434.0,0.2]
[1722088133856,0.860897,69435.0,69434.0,0.2]
[1722088134055,0.859897,69435.0,69434.0,0.2]
[1722088134468,1.161936,69435.0,69434.0,0.2]
[1722088134905,1.19054003,69435.0,69434.0,0.2]
[1722088135115,1.19754003,69435.0,69434.0,0.2]
[1722088135292,1.17054003,69435.0,69434.0,0.2]
[1722088135711,1.18454003,69435.0,69434.0,0.2]
[1722088135913,1.17054003,69435.0,69434.0,0.2]
[1722088136152,1.14795,69434.0,69433.0,0.3734]
[1722088136300,0.1413542,69434.0,69433.0,0.3734]
[1722088136500,0.1398,69434.0,69433.0,0.3734]
[1722088136905,0.1413542,69434.0,69433.0,0.3734]
[1722088137418,0.1398,69434.0,69433.0,0.3734]
[1722088137899,0.1498,69434.0,69433.0,0.3734]
[1722088138138,0.1608,69434.0,69433.0,0.3734]
[1722088139374,0.18340392,69434.0,69433.0,0.3734]
[1722088140738,0.18426076,69434.0,69433.0,0.3734]
[1722088141051,0.18340392,69434.0,69433.0,0.3734]
[1722088141251,0.18449821,69434.0,69433.0,0.3734]
[1722088142138,0.18340392,69434.0,69433.0,0.3734]
[1722088142358,0.1608,69434.0,69433.0,0.3734]
[1722088142557,0.1623542,69434.0,69433.0,0.3734]
[1722088143263,0.1608,69434.0,69433.0,0.3734]
[1722088146707,0.0973,69434.0,69433.0,0.3734]
[1722088148387,0.021,69434.0,69433.0,0.3734]
[1722088149402,1.0,69436.0,69433.0,0.3734]
[1722088149403,0.94899404,69436.0,69433.0,0.3734]
[1722088149610,0.00081488,69435.0,69433.0,0.3734]
[1722088149827,0.94899404,69436.0,69433.0,0.3734]
[1722088150441,0.94899404,69436.0,69434.0,0.07512979]
[1722088150442,0.00092229,69435.0,69434.0,0.07512979]
[1722088150648,0.94899404,69436.0,69435.0,0.510858]
[1722088150857,0.94899404,69436.0,69435.0,1.00155657]
[1722088151626,0.94999404,69436.0,69435.0,1.00155657]
[1722088151832,0.94999404,69436.0,69435.0,1.28959557]
[1722088152007,0.94899404,69436.0,69435.0,1.28959557]
[1722088152638,0.94999404,69436.0,69435.0,1.00155657]
[1722088153300,0.94999404,69436.0,69435.0,1.28959557]
[1722088153508,0.88439404,69436.0,69435.0,1.89203721]
[1722088153695,0.81779404,69436.0,69435.0,1.68527457]
[1722088153897,0.81779404,69436.0,69435.0,1.24439557]
[1722088153898,0.81679404,69436.0,69435.0,1.24439557]
[1722088154114,0.81779404,69436.0,69435.0,1.25539557]
[1722088154294,0.81779404,69436.0,69435.0,1.26939557]
[1722088154541,0.81579404,69436.0,69435.0,1.25839557]
[1722088154769,0.81679404,69436.0,69435.0,0.67931757]
[1722088154979,0.81679404,69436.0,69435.0,1.25539557]
[1722088155193,0.81679404,69436.0,69435.0,1.52083457]
[1722088155194,0.65768604,69436.0,69435.0,1.52083457]
[1722088155407,0.45436961,69436.0,69435.0,2.05907268]
[1722088155533,0.43778009,69436.0,69435.0,1.75702359]
[1722088156350,0.43778009,69436.0,69435.0,1.71698459]
[1722088156575,0.43778009,69436.0,69435.0,1.52959557]
[1722088156780,0.43778009,69436.0,69435.0,1.51559557]
[1722088157225,0.43778009,69436.0,69435.0,1.52959557]
[1722088157540,0.43778009,69436.0,69435.0,1.26559557]
[1722088157683,0.43778009,69436.0,69435.0,0.60351757]
[1722088157883,0.43778009,69436.0,69435.0,0.33947857]
[1722088158106,0.43778009,69436.0,69435.0,0.16425957]
[1722088158441,0.43778009,69436.0,69435.0,0.014]
[1722088158843,0.43778009,69436.0,69434.0,0.07512979]
[1722088159058,0.0015542,69435.0,69434.0,0.07512979]
[1722088159668,0.0015542,69435.0,69434.0,0.94549636]
[1722088159824,0.43778009,69436.0,69435.0,0.144019]
[1722088160024,0.43778009,69436.0,69434.0,0.21914979]
[1722088160235,0.00110524,69435.0,69434.0,0.23315079]
[1722088160502,0.43778009,69436.0,69434.0,0.23315079]
[1722088160503,0.43778009,69436.0,69435.0,0.144019]
[1722088160631,0.43778009,69436.0,69435.0,0.720097]
[1722088160862,0.43878009,69436.0,69435.0,0.734097]
[1722088161073,0.43878009,69436.0,69435.0,0.014]
[1722088161372,0.43778009,69436.0,69434.0,0.08912979]
[1722088161555,0.43778009,69436.0,69434.0,0.014]
[1722088161752,0.0015542,69435.0,69434.0,0.028]
[1722088162063,0.43878009,69436.0,69434.0,0.028]
[1722088162268,0.43778009,69436.0,69435.0,0.07512979]
[1722088162474,0.43778009,69436.0,69435.0,0.21914879]
[1722088162891,0.43778009,69436.0,69435.0,0.07512979]
[1722088163097,0.43778009,69436.0,69435.0,0.08912979]
[1722088163424,0.43778009,69436.0,69435.0,0.79522679]
[1722088163605,0.43778009,69436.0,69435.0,1.78346436]
[1722088163606,0.43878009,69436.0,69435.0,1.78346436]
[1722088163826,0.43878009,69436.0,69435.0,1.92046436]
[1722088164028,0.43778009,69436.0,69435.0,2.21050336]
[1722088164384,0.43878009,69436.0,69435.0,2.25334336]
[1722088164588,0.43878009,69436.0,69435.0,1.95130436]
[1722088164768,0.43778009,69436.0,69435.0,1.93730436]
[1722088164985,0.43778009,69436.0,69435.0,1.93530436]
[1722088165247,0.43878009,69436.0,69435.0,1.94930436]
[1722088166005,0.43878009,69436.0,69435.0,2.02101136]
[1722088166216,0.43878009,69436.0,69435.0,1.71897236]
[1722088166419,0.43978009,69436.0,69435.0,1.98297236]
[1722088166624,0.43878009,69436.0,69435.0,1.96897236]
[1722088166827,0.43878009,69436.0,69435.0,2.25701136]
[1722088167061,0.43878009,69436.0,69435.0,2.27101136]
[1722088167263,0.43878009,69436.0,69435.0,1.99186517]
[1722088167403,0.43878009,69436.0,69435.0,1.74186517]
[1722088167618,0.43878009,69436.0,69435.0,1.83267961]
[1722088168438,0.43878009,69436.0,69435.0,2.08267957]
[1722088169491,0.43878009,69436.0,69435.0,1.25974057]
[1722088169709,0.43878009,69436.0,69435.0,1.57661957]
[1722088169955,0.43878009,69436.0,69435.0,1.28858057]
[1722088170153,0.43878009,69436.0,69435.0,1.03119336]
[1722088170451,0.43778009,69436.0,69435.0,1.00319336]
[1722088170668,0.43878009,69436.0,69435.0,1.03119336]
[1722088170796,0.43878009,69436.0,69435.0,1.01719336]
[1722088171186,0.43878009,69436.0,69435.0,1.00319336]
[1722088171391,0.43878009,69436.0,69435.0,1.29123236]
[1722088171593,0.43878009,69436.0,69435.0,1.01719336]
[1722088172370,0.43978009,69436.0,69435.0,1.03119336]
[1722088172694,0.43978009,69436.0,69435.0,1.01719336]
[1722088172695,0.43778009,69436.0,69435.0,1.01719336]
[1722088172848,0.43778009,69436.0,69435.0,1.00319336]
[1722088173009,0.43778009,69436.0,69435.0,1.00269336]
[1722088173204,0.43778009,69436.0,69435.0,1.01669336]
[1722088173411,0.43878009,69436.0,69435.0,1.03069336]
[1722088173629,0.36582947,69436.0,69435.0,1.32773236]
[1722088173830,0.36582947,69436.0,69435.0,1.44739746]
[1722088174130,0.36582947,69436.0,69435.0,1.46139746]
[1722088174254,0.36582947,69436.0,69435.0,1.43839746]
[1722088174458,0.36582947,69436.0,69435.0,1.15035846]
[1722088174879,0.36582947,69436.0,69435.0,1.03069336]
[1722088175083,0.41582947,69436.0,69435.0,1.17535818]
[1722088177028,0.41582947,69436.0,69435.0,0.76765436]
[1722088177238,0.41582947,69436.0,69435.0,0.33559636]
[1722088177437,0.41582947,69436.0,69435.0,0.76765436]
[1722088177639,0.41582947,69436.0,69435.0,0.18533679]
[1722088177814,0.41582947,69436.0,69435.0,0.32935579]
[1722088178025,0.41582947,69436.0,69435.0,0.18533679]
[1722088178691,0.41582947,69436.0,69435.0,1.34373236]
[1722088178892,0.41582947,69436.0,69435.0,1.75144384]
[1722088179102,0.41482947,69436.0,69435.0,1.68370484]
[1722088179248,0.41582947,69436.0,69435.0,1.78370484]
[1722088179644,0.41582947,69436.0,69435.0,1.79570484]
[1722088179844,0.41582947,69436.0,69435.0,2.08374384]
[1722088180064,0.41582947,69436.0,69435.0,2.06974384]
[1722088180271,0.41482947,69436.0,69435.0,1.74470484]
[1722088180471,0.41582947,69436.0,69435.0,1.77270484]
[1722088181119,0.41582947,69436.0,69435.0,1.48466584]
[1722088181553,0.41582947,69436.0,69435.0,1.65303236]
[1722088181765,0.41582947,69436.0,69435.0,1.77269651]
[1722088182183,0.41582947,69436.0,69435.0,1.77362051]
[1722088182395,0.41666947,69436.0,69435.0,1.77362051]
[1722088182597,0.43926649,69436.0,69435.0,1.77362051]
[1722088183121,0.43926649,69436.0,69435.0,0.60020351]
[1722088183326,0.43926649,69436.0,69435.0,0.88824251]
[1722088183734,0.43926649,69436.0,69435.0,0.60020351]
[1722088184126,0.43926649,69436.0,69435.0,0.33027979]
[1722088185700,0.41666947,69436.0,69435.0,0.33027979]
[1722088185897,0.41666947,69436.0,69435.0,0.31627979]
[1722088186186,0.41666947,69436.0,69435.0,0.87835779]
[1722088186187,0.41566947,69436.0,69435.0,0.87835779]
[1722088186490,0.41566947,69436.0,69435.0,1.02603489]
[1722088186689,0.41566947,69436.0,69435.0,0.73799589]
[1722088186690,0.41666947,69436.0,69435.0,0.73799589]
[1722088186958,0.41649613,69436.0,69435.0,0.73799589]
[1722088187345,0.41649613,69436.0,69435.0,1.02603489]
[1722088188130,0.41649613,69436.0,69435.0,0.90635779]
[1722088188306,0.41649613,69436.0,69435.0,0.73799178]
[1722088188508,0.41649613,69436.0,69435.0,1.02603078]
[1722088189133,0.43909517,69436.0,69435.0,1.46432935]
[1722088189510,0.41649613,69436.0,69435.0,1.46432935]
[1722088190532,0.41649613,69436.0,69435.0,1.90420835]
[1722088191349,0.05184,69436.0,69435.0,1.93410466]
[1722088191542,0.05184,69436.0,69435.0,2.15419008]
[1722088191940,0.05084,69436.0,69435.0,2.28975873]
[1722088192145,0.05084,69436.0,69435.0,2.30375873]
[1722088192393,0.05084,69436.0,69435.0,2.15419008]
[1722088192568,0.05084,69436.0,69435.0,2.14019008]
[1722088192740,0.05084,69436.0,69435.0,2.30375706]
[1722088192940,0.07343622,69436.0,69435.0,2.30375706]
[1722088193147,0.05084,69436.0,69435.0,2.14019008]
[1722088193348,0.05084,69436.0,69435.0,2.15419008]
[1722088193966,0.05084,69436.0,69435.0,2.33372553]
[1722088194129,0.05084,69436.0,69435.0,2.34096785]
[1722088194337,0.05084,69436.0,69435.0,2.30576005]
[1722088194835,0.05084,69436.0,69435.0,2.35496444]
[1722088195078,0.05084,69436.0,69435.0,2.30575357]
[1722088195350,0.05084,69436.0,69435.0,2.39698876]
[1722088195512,0.05084,69436.0,69435.0,2.36880681]
[1722088195938,0.05084,69436.0,69435.0,2.65684581]
[1722088196122,0.05084,69436.0,69435.0,2.97633887]
[1722088196481,0.07343563,69436.0,69435.0,2.97633887]
[1722088196883,0.05084,69436.0,69435.0,2.97633887]
[1722088197077,0.05084,69436.0,69435.0,2.68829987]
[1722088197302,0.05084,69436.0,69435.0,2.68629987]
[1722088197503,0.05084,69436.0,69435.0,2.43629987]
[1722088198079,0.05084,69436.0,69435.0,2.43629704]
[1722088198335,0.05084,69436.0,69435.0,1.90418236]
[1722088198492,0.05084,69436.0,69435.0,2.15418236]
[1722088199743,0.05084,69436.0,69435.0,2.70732203]
[1722088199997,0.05084,69436.0,69435.0,2.6883032]
[1722088200217,0.07343589,69436.0,69435.0,2.62324448]
[1722088200385,0.07343589,69436.0,69435.0,2.68630355]
[1722088200541,0.07343589,69436.0,69435.0,2.43630355]
[1722088200542,0.05084,69436.0,69435.0,2.43630355]
[1722088201134,0.05084,69436.0,69435.0,2.11679484]
[1722088201332,0.05084,69436.0,69435.0,2.36678967]
[1722088201535,0.05084,69436.0,69435.0,2.53872814]
[1722088201835,0.064,69456.0,69455.0,0.71989]
[1722088202012,0.064,69456.0,69455.0,0.87014957]
[1722088202215,0.064,69456.0,69455.0,0.143978]
[1722088202420,0.064,69456.0,69454.0,0.143979]
[1722088202713,0.064,69456.0,69452.0,0.287964]
[1722088202951,0.064,69456.0,69452.0,0.143983]
[1722088203241,0.064,69456.0,69455.0,0.014]
[1722088203376,0.064,69456.0,69455.0,0.028]
[1722088203377,0.08659394,69456.0,69455.0,0.028]
[1722088203785,0.1408,69456.0,69455.0,0.028]
[1722088204764,0.1408,69456.0,69455.0,0.014]
[1722088204942,0.0623,69453.0,69439.0,0.04864539]
[1722088205149,0.0623,69453.0,69452.0,0.028]
[1722088205369,0.0623,69453.0,69452.0,0.014]
[1722088205525,0.1412,69453.0,69452.0,0.014]
[1722088205722,0.0623,69450.0,69435.0,0.15826079]
[1722088205924,0.0789,69447.0,69442.0,0.07512979]
[1722088206293,0.0623,69446.0,69442.0,0.07512979]
[1722088206482,0.0789,69443.0,69435.0,0.10055379]
[1722088206624,0.0623,69442.0,69435.0,0.10055379]
[1722088206830,0.08489918,69442.0,69435.0,0.10055379]
[1722088207030,0.0623,69440.0,69435.0,0.10055379]
[1722088207293,0.0789,69439.0,69435.0,0.10055379]
[1722088207521,0.0623,69438.0,69435.0,0.10055379]
[1722088207748,0.0015542,69437.0,69435.0,0.10055379]
[1722088208179,0.0015542,69437.0,69435.0,0.11255379]
[1722088208365,0.0623,69438.0,69435.0,0.11255379]
[1722088208491,0.0623,69438.0,69436.0,0.144017]
[1722088208688,0.0623,69438.0,69435.0,0.11255379]
[1722088208689,0.0623,69438.0,69437.0,0.432045]
[1722088208946,0.0789,69460.0,69440.0,0.288014]
[1722088209142,0.0789,69457.0,69455.0,0.07512979]
[1722088209355,0.1412,69457.0,69456.0,0.07512979]
[1722088209593,0.002,69469.0,69442.0,0.07512979]
[1722088209594,0.0789,69455.0,69442.0,0.07512979]
[1722088209821,0.0789,69453.0,69442.0,0.07512979]
[1722088209998,0.1412,69453.0,69452.0,0.07512979]
[1722088210197,0.0623,69451.0,69442.0,0.07512979]
[1722088210513,0.499198,69469.0,69449.0,0.07512979]
[1722088210514,0.1412,69450.0,69449.0,0.07512979]
[1722088211126,0.16379765,69450.0,69449.0,0.07512979]
[1722088211319,0.1412,69450.0,69449.0,0.07512979]
[1722088212244,0.1412,69450.0,69449.0,0.08712979]
[1722088212603,0.1412,69450.0,69449.0,0.23111979]
[1722088212968,0.1412,69450.0,69449.0,1.31063236]
[1722088213110,0.002,69469.0,69449.0,0.56634974]
[1722088213313,0.002,69469.0,69468.0,0.07512979]
[1722088213515,0.1432,69469.0,69468.0,0.07512979]
[1722088214707,0.16579245,69469.0,69468.0,0.07512979]
[1722088215104,0.1432,69469.0,69468.0,0.07512979]
[1722088215518,0.1432,69469.0,69461.0,0.07512979]
[1722088215721,0.1432,69469.0,69468.0,0.014]
[1722088215923,0.1432,69469.0,69468.0,0.10312979]
[1722088216192,0.1432,69469.0,69468.0,0.24708079]
[1722088216416,0.1432,69469.0,69468.0,0.10312979]
[1722088216599,0.1432,69469.0,69468.0,0.24708079]
[1722088216799,0.1432,69469.0,69468.0,0.53498279]
[1722088217010,0.1432,69469.0,69468.0,0.23308079]
[1722088217219,0.1432,69469.0,69468.0,0.08912979]
[1722088217523,0.1432,69469.0,69468.0,0.52098279]
[1722088217926,0.1432,69469.0,69468.0,0.08912979]
[1722088218153,0.1432,69469.0,69468.0,0.23308079]
[1722088218354,0.16579145,69469.0,69468.0,0.08912979]
[1722088218950,0.1432,69469.0,69468.0,0.08912979]
[1722088219183,0.1432,69469.0,69468.0,0.07512979]
[1722088219380,0.1432,69469.0,69468.0,0.08912979]
[1722088219585,0.1432,69469.0,69468.0,0.10312979]
[1722088220331,0.1432,69469.0,69468.0,0.028]
[1722088221716,0.1432,69469.0,69468.0,0.014]
[1722088222032,0.1412,69466.0,69461.0,0.07512979]
[1722088222229,0.0623,69464.0,69461.0,0.07512979]
[1722088223116,0.0623,69464.0,69461.0,0.08812979]
[1722088223517,0.0623,69464.0,69461.0,0.07512979]
[1722088223964,0.0623,69464.0,69461.0,0.21909379]
[1722088224292,0.0623,69464.0,69461.0,0.21909479]
[1722088224493,0.0623,69464.0,69462.0,0.143962]
[1722088224872,0.0623,69464.0,69461.0,0.07512979]
[1722088225064,0.0789,69465.0,69464.0,0.143959]
[1722088225315,0.0789,69465.0,69464.0,0.431877]
[1722088226029,0.10149156,69465.0,69464.0,0.431877]
[1722088226285,0.10149156,69465.0,69464.0,0.719795]
[1722088226512,0.02259156,69465.0,69464.0,1.15797257]
[1722088226784,0.0652,69469.0,69468.0,0.431853]
[1722088227033,0.0652,69469.0,69468.0,0.719755]
[1722088227598,0.0652,69469.0,69468.0,0.431853]
[1722088227986,0.0652,69469.0,69468.0,0.79488479]
[1722088228208,0.0652,69469.0,69468.0,0.50698279]
[1722088228527,0.002,69469.0,69468.0,0.52098279]
[1722088229111,0.002,69469.0,69468.0,0.53498279]
[1722088229917,0.02459012,69469.0,69468.0,0.53498279]
[1722088230453,0.002,69469.0,69468.0,0.028]
[1722088230644,0.0652,69469.0,69468.0,0.028]
[1722088231827,0.0652,69469.0,69468.0,0.03214954]
[1722088234265,0.1408,69469.0,69468.0,0.028]
[1722088235160,0.0632,69468.0,69449.0,0.07512979]
[1722088235366,0.0632,69460.0,69449.0,0.07512979]
[1722088235567,0.0756,69457.0,69450.0,0.00398453]
[1722088235737,0.0015542,69456.0,69449.0,0.07512979]
[1722088235930,0.0632,69455.0,69449.0,0.07512979]
[1722088236133,0.0647542,69453.0,69442.0,0.07512979]
[1722088236642,0.0647542,69453.0,69443.0,0.00466729]
[1722088236857,0.02259809,69451.0,69442.0,0.07512979]
[1722088237057,0.0647542,69450.0,69443.0,0.00466729]
[1722088237253,0.0647542,69450.0,69442.0,0.07512979]
[1722088237453,0.0647542,69450.0,69449.0,0.01]
[1722088237662,0.0632,69450.0,69449.0,0.01]
[1722088237903,0.0632,69450.0,69442.0,0.07512979]
[1722088238113,0.0015542,69449.0,69442.0,0.07512979]
[1722088238312,0.0015542,69449.0,69443.0,0.01866729]
[1722088238932,0.0015542,69449.0,69443.0,0.00466729]
[1722088239107,0.0015542,69449.0,69444.0,0.15025957]
[1722088239311,0.02259809,69451.0,69444.0,0.15025957]
[1722088239520,0.02259809,69451.0,69450.0,0.21911779]
[1722088239720,0.02259809,69451.0,69450.0,0.50709379]
[1722088239963,0.02259809,69451.0,69450.0,0.22379693]
[1722088240138,0.02259809,69451.0,69450.0,0.07980893]
[1722088240670,0.02259809,69451.0,69450.0,0.22379693]
[1722088240845,0.02259809,69451.0,69450.0,0.79974893]
[1722088241048,0.02259809,69451.0,69450.0,0.91939541]
[1722088241303,0.0632,69461.0,69454.0,0.143978]
[1722088241472,0.0632,69461.0,69460.0,0.07512979]
[1722088241684,0.0632,69461.0,69460.0,0.07979601]
[1722088242314,0.0756,69462.0,69461.0,0.143965]
[1722088242807,0.0756,69462.0,69461.0,0.00466598]
[1722088243582,0.0756,69462.0,69461.0,0.16263098]
[1722088243790,0.0632,69466.0,69463.0,0.287922]
[1722088244040,0.0632,69466.0,69461.0,0.01866598]
[1722088244238,0.0632,69466.0,69462.0,0.143962]
[1722088244451,0.0632,69466.0,69461.0,0.014]
[1722088244643,0.0632,69466.0,69463.0,0.00466549]
[1722088244841,0.0632,69466.0,69462.0,0.00466574]
[1722088245044,0.0632,69466.0,69464.0,0.00466525]
[1722088245244,0.0632,69466.0,69465.0,0.00466501]
[1722088245449,0.0632,69466.0,69464.0,0.143958]
[1722088245651,0.0632,69466.0,69465.0,0.00466501]
[1722088246043,0.08579202,69466.0,69465.0,0.00466501]
[1722088246259,0.08579202,69466.0,69463.0,0.014]
[1722088246460,0.08579202,69466.0,69465.0,0.014]
[1722088246658,0.08579202,69466.0,69465.0,0.01867222]
[1722088248630,0.08579202,69466.0,69465.0,0.03267222]
[1722088249040,0.0632,69466.0,69465.0,0.03267222]
[1722088252422,0.08579218,69466.0,69465.0,0.03267222]
[1722088252629,0.0632,69466.0,69465.0,0.03267222]
[1722088252994,0.1393,69466.0,69465.0,0.03267222]
[1722088253592,0.283255,69466.0,69465.0,0.028]
[1722088253956,0.1408542,69466.0,69465.0,0.028]
[1722088254162,0.1408542,69466.0,69465.0,0.014]
[1722088254293,0.1393,69466.0,69465.0,0.014]
[1722088254494,0.1393,69466.0,69465.0,0.00496512]
[1722088254735,0.1393,69466.0,69462.0,0.07512979]
[1722088254898,0.1393,69466.0,69465.0,0.00896512]
[1722088255377,0.1393,69466.0,69465.0,0.01396512]
[1722088256231,0.1393,69466.0,69465.0,0.00996512]
[1722088256391,0.571165,69466.0,69465.0,0.005]
[1722088256599,0.859075,69466.0,69465.0,0.005]
[1722088257007,0.859075,69466.0,69465.0,0.00113]
[1722088257256,0.59376028,69466.0,69465.0,0.00113]
[1722088257461,0.30585028,69466.0,69465.0,0.00113]
[1722088257862,0.59531448,69466.0,69465.0,0.00113]
[1722088258062,0.143958,69465.0,69462.0,0.004]
[1722088258263,0.0622542,69465.0,69462.0,0.004]
[1722088258466,0.0622542,69465.0,69461.0,0.0632]
[1722088259012,0.143959,69464.0,69461.0,0.0632]
[1722088259123,0.0622542,69465.0,69461.0,0.0632]
[1722088259325,0.1368,69463.0,69462.0,0.003]
[1722088259553,0.1368,69463.0,69462.0,0.002]
[1722088259921,1.144544,69462.0,69461.0,0.0642]
[1722088260125,1.144544,69462.0,69461.0,0.0632]
[1722088260942,1.353844,69462.0,69461.0,0.0632]
[1722088261143,1.353844,69462.0,69461.0,0.0642]
[1722088261581,1.353844,69462.0,69461.0,0.0632]
[1722088262031,1.355844,69462.0,69461.0,0.0632]
[1722088262331,1.356844,69462.0,69461.0,0.0632]
[1722088262628,1.356844,69462.0,69446.0,0.00017333]
[1722088262629,0.280794,69447.0,69446.0,0.00017333]
[1722088262975,0.1368,69447.0,69446.0,0.00017333]
[1722088263197,0.280794,69447.0,69446.0,0.00017333]
[1722088263380,0.1368,69447.0,69446.0,0.00017333]
[1722088264805,0.15940025,69447.0,69446.0,0.00017333]
[1722088265004,0.16540025,69447.0,69446.0,0.01217333]
[1722088265321,0.16440025,69447.0,69446.0,0.00017333]
[1722088265523,0.15940025,69447.0,69446.0,0.00017333]
[1722088265740,0.16140025,69447.0,69446.0,0.00017333]
[1722088265941,0.16340025,69447.0,69446.0,0.00017333]
[1722088266585,0.80468325,69447.0,69446.0,0.00017333]
[1722088266784,1.09267225,69447.0,69446.0,0.00017333]
[1722088267630,1.09067225,69447.0,69446.0,0.00017333]
[1722088267791,1.08867225,69447.0,69446.0,0.00017333]
[1722088267992,0.80068325,69447.0,69446.0,0.00217333]
[1722088268214,0.15940025,69447.0,69446.0,0.00317333]
[1722088268448,0.15940025,69447.0,69446.0,0.00017333]
[1722088268449,0.08330025,69447.0,69446.0,0.00017333]
[1722088268646,0.02260025,69447.0,69446.0,0.00017333]
[1722088268882,0.02560025,69447.0,69446.0,0.00017333]
[1722088269430,0.02460025,69447.0,69446.0,0.00017333]
[1722088269595,0.02360025,69447.0,69446.0,0.00497256]
[1722088269753,0.02360025,69447.0,69446.0,0.00017333]
[1722088269955,0.001,69447.0,69446.0,0.00497256]
[1722088270159,0.001,69447.0,69446.0,0.00017333]
[1722088270357,0.001,69447.0,69446.0,0.00497256]
[1722088270556,0.001,69447.0,69446.0,0.00017333]
[1722088270783,0.001,69447.0,69446.0,0.00497256]
[1722088270998,0.1458,69447.0,69446.0,0.01417333]
[1722088271198,0.1448,69447.0,69446.0,0.00497256]
[1722088271401,0.289794,69447.0,69446.0,0.01417333]
[1722088271602,0.577783,69447.0,69446.0,0.01417333]
[1722088271928,0.1468,69447.0,69436.0,0.000924]
[1722088272123,0.1448,69447.0,69436.0,0.000924]
[1722088272323,0.143999,69445.0,69437.0,0.00478077]
[1722088272478,0.287993,69446.0,69436.0,0.000924]
[1722088272679,0.0662,69443.0,69436.0,0.000924]
[1722088273088,0.210203,69443.0,69436.0,0.000924]
[1722088273690,0.0662,69443.0,69441.0,0.07512979]
[1722088274568,0.0662,69443.0,69436.0,0.000924]
[1722088275050,0.0662,69443.0,69437.0,0.00478077]
[1722088275569,0.0742,69443.0,69437.0,0.00478077]
[1722088276003,0.210203,69443.0,69437.0,0.00478077]
[1722088276171,0.144006,69442.0,69437.0,0.00478077]
[1722088276380,0.0662,69443.0,69437.0,0.00678077]
[1722088277141,0.288011,69442.0,69437.0,0.00678077]
[1722088277339,0.0662,69443.0,69437.0,0.00678077]
[1722088277340,0.144007,69441.0,69437.0,0.00678077]
[1722088277683,0.210203,69443.0,69437.0,0.00678077]
[1722088277883,0.212203,69443.0,69437.0,0.00678077]
[1722088278109,0.0682,69443.0,69437.0,0.00678077]
[1722088278229,0.02260101,69442.0,69437.0,0.00478077]
[1722088278428,0.02260101,69442.0,69437.0,0.00578077]
[1722088278642,0.002,69441.0,69437.0,0.00578077]
[1722088278841,0.432039,69438.0,69437.0,0.00578077]
[1722088279042,0.864865,69438.0,69437.0,0.00578077]
[1722088279301,0.576839,69438.0,69437.0,0.00570477]
[1722088279904,0.576839,69438.0,69437.0,0.00670477]
[1722088280103,0.864865,69438.0,69437.0,0.00570477]
[1722088280608,0.864865,69438.0,69437.0,0.00670477]
[1722088280809,0.9801529,69438.0,69437.0,0.00670477]
[1722088281152,0.864865,69438.0,69437.0,0.00570477]
[1722088281354,0.864865,69438.0,69437.0,0.00970477]
[1722088281753,0.864865,69438.0,69437.0,0.00770477]
[1722088282145,0.864865,69438.0,69437.0,0.00670477]
[1722088282146,1.182891,69438.0,69437.0,0.00670477]
[1722088282334,1.182891,69438.0,69437.0,0.00570477]
[1722088282335,0.1518,69438.0,69437.0,0.00570477]
[1722088282531,0.17440296,69438.0,69437.0,0.00570477]
[1722088282732,0.18240296,69438.0,69437.0,0.00670477]
[1722088283691,0.16740296,69438.0,69437.0,0.00570477]
[1722088284070,0.17940296,69438.0,69437.0,0.00570477]
[1722088284356,0.16740296,69438.0,69437.0,0.00570477]
[1722088284560,0.02260296,69438.0,69437.0,0.00570477]
[1722088284764,0.001,69438.0,69437.0,0.00570477]
[1722088284942,0.012,69438.0,69437.0,0.00670477]
[1722088285477,0.0651,69442.0,69437.0,0.00570477]
[1722088285645,0.001,69438.0,69437.0,0.01570477]
[1722088285840,0.209105,69442.0,69437.0,0.00570477]
[1722088286009,0.0651,69442.0,69437.0,0.00570477]
[1722088286424,0.0651,69442.0,69441.0,0.07512979]
[1722088286627,0.0651,69441.0,69437.0,0.000924]
[1722088286922,0.432039,69438.0,69437.0,0.000924]
[1722088287191,0.0784739,69438.0,69437.0,0.000924]
[1722088287426,0.706464,69434.0,69413.0,0.025924]
[1722088287591,0.784764,69434.0,69413.0,0.025924]